fUSD/lending_fUSD_20260421
["ID","MTS","AMOUNT","RATE_DAILY","PERIOD"]
[420919965,1776727848684,-150.0,0.00024658,2]
[420919967,1776727848693,-150.0,0.00024879,2]
[420919969,1776727848702,-150.0,0.00024879,2]
[420919971,1776727848711,-150.0,0.00024879,2]
[420919973,1776727848720,-150.0,0.00024879,2]
[420919975,1776727848732,-210.0,0.00025,2]
[420919977,1776727848741,-450.0,0.00025,2]
[420919979,1776727848750,-294.64,0.00025,2]
[420919981,1776727848759,-171.0,0.00025,2]
[420919983,1776727848768,-449.0,0.00025,2]
[420919985,1776727848777,-166.0,0.00025,2]
[420919987,1776727848786,-166.66,0.00025056,30]
[420919989,1776727848795,-311.0,0.000251,3]
[420919991,1776727848805,-2000.0,0.000253,2]
[420919993,1776727848815,-166.66,0.00025583,30]
[420919994,1776727848823,-195.52,0.00025823,2]
[420919996,1776727848832,-150.0,0.0002589,2]
[420919998,1776727848841,-205.086969,0.00025908,14]
[420920000,1776727848850,-203.159976,0.00025908,14]
[420920002,1776727848860,-278.693427,0.00025908,14]
[420920005,1776727848871,-185.12673,0.00025908,14]
[420920007,1776727848879,-500.0,0.00026,120]
[420920009,1776727848889,-1224.07,0.00026,120]
[420920011,1776727848898,-166.66,0.00026111,30]
[420920013,1776727848907,-4981.95,0.00026436,2]
[420920015,1776727848917,-505.0,0.00026548,13]
[420920017,1776727848926,-464.29,0.00026603,2]
[420920019,1776727848935,-166.66,0.00026638,30]
[420920021,1776727848944,-477.92,0.00026698,2]
[420920023,1776727848954,-200.0,0.000268,9]
[420920025,1776727848964,-400.0,0.000269,9]
[420920027,1776727848973,-2000.0,0.00026962,2]
[420920029,1776727848982,-166.66,0.00027166,30]
[420920031,1776727848991,-150.0,0.00027185,2]
[420920033,1776727849001,-161.36591832,0.00027297,5]
[420920035,1776727849010,-500.0,0.00027373,2]
[420920079,1776727849375,-500.21459105,0.00027373,2]
[420920083,1776727849437,-600.0,0.00027373,2]
[420920085,1776727849446,-186.81878625,0.00027387,2]
[420920087,1776727849456,-350.0,0.0002739,2]
[420920089,1776727849465,-8000.0,0.00027396,2]
[420920091,1776727849474,-852.63326424,0.00027396,2]
[420920093,1776727849483,-500.0,0.00027396,2]
[420920095,1776727849493,-500.0,0.00027396,2]
[420920097,1776727849502,-500.0,0.00027396,2]
[420920099,1776727849511,-500.0,0.00027396,2]
[420920101,1776727849520,-500.0,0.00027396,2]
[420920103,1776727849529,-500.0,0.00027396,2]
[420920105,1776727849538,-500.0,0.00027396,2]
[420920107,1776727849547,-500.0,0.00027396,2]
[420920109,1776727849556,-500.0,0.00027396,2]
[420920112,1776727849565,-500.0,0.00027396,2]
[420920114,1776727849574,-500.0,0.00027396,2]
[420920116,1776727849584,-500.0,0.00027396,2]
[420920118,1776727849593,-500.0,0.00027396,2]
[420920119,1776727849601,-500.0,0.00027396,2]
[420920121,1776727849611,-500.0,0.00027396,2]
[420920123,1776727849620,-500.0,0.00027396,2]
[420920126,1776727849629,-500.0,0.00027396,2]
[420920128,1776727849638,-500.0,0.00027396,2]
[420920130,1776727849647,-500.0,0.00027396,2]
[420920132,1776727849657,-500.0,0.00027396,2]
[420920133,1776727849666,-500.0,0.00027396,2]
[420920136,1776727849676,-500.0,0.00027396,2]
[420920137,1776727849686,-500.0,0.00027396,2]
[420920140,1776727849696,-500.0,0.00027396,2]
[420920142,1776727849706,-500.0,0.00027396,2]
[420920144,1776727849715,-500.0,0.00027396,2]
[420920146,1776727849724,-500.0,0.00027396,2]
[420920148,1776727849737,-500.0,0.00027396,2]
[420920150,1776727849746,-500.0,0.00027396,2]
[420920152,1776727849756,-500.0,0.00027396,2]
[420920154,1776727849765,-500.0,0.00027396,2]
[420920156,1776727849775,-500.0,0.00027396,2]
[420920158,1776727849785,-500.0,0.00027396,2]
[420920160,1776727849795,-500.0,0.00027396,2]
[420920162,1776727849804,-500.0,0.00027396,2]
[420920164,1776727849813,-500.0,0.00027396,2]
[420920166,1776727849822,-500.0,0.00027396,2]
[420920168,1776727849831,-500.0,0.00027396,2]
[420920171,1776727849842,-500.0,0.00027396,2]
[420920173,1776727849851,-500.0,0.00027396,2]
[420920175,1776727849860,-500.0,0.00027396,2]
[420920177,1776727849870,-500.0,0.00027396,2]
[420920179,1776727849879,-500.0,0.00027396,2]
[420920181,1776727849888,-500.0,0.00027396,2]
[420920182,1776727849897,-500.0,0.00027396,2]
[420920184,1776727849906,-500.0,0.00027396,2]
[420920186,1776727849915,-500.0,0.00027396,2]
[420920188,1776727849925,-500.0,0.00027396,2]
[420920190,1776727849934,-500.0,0.00027396,2]
[420920192,1776727849943,-500.0,0.00027396,2]
[420920194,1776727849953,-500.0,0.00027396,2]
[420920196,1776727849962,-500.0,0.00027396,2]
[420920198,1776727849971,-500.0,0.00027396,2]
[420920200,1776727849980,-500.0,0.00027396,2]
[420920202,1776727849989,-500.0,0.00027396,2]
[420920204,1776727849999,-500.0,0.00027396,2]
[420920206,1776727850008,-500.0,0.00027396,2]
[420920208,1776727850017,-500.0,0.00027396,2]
[420920210,1776727850026,-500.0,0.00027396,2]
[420920212,1776727850035,-548.815666,0.00027396,2]
[420920214,1776727850045,-500.0,0.00027396,2]
[420920217,1776727850055,-500.0,0.00027396,2]
[420920219,1776727850064,-500.0,0.00027396,2]
[420920221,1776727850074,-500.0,0.00027396,2]
[420920223,1776727850083,-500.0,0.00027396,2]
[420920225,1776727850091,-500.0,0.00027396,2]
[420920227,1776727850101,-500.0,0.00027396,2]
[420920229,1776727850110,-500.0,0.00027396,2]
[420920231,1776727850120,-500.0,0.00027396,2]
[420920233,1776727850129,-500.0,0.00027396,2]
[420920235,1776727850138,-500.0,0.00027396,2]
[420920237,1776727850147,-500.0,0.00027396,2]
[420920239,1776727850157,-500.0,0.00027396,2]
[420920241,1776727850166,-500.0,0.00027396,2]
[420920243,1776727850175,-500.0,0.00027396,2]
[420920245,1776727850184,-500.0,0.00027396,2]
[420920247,1776727850194,-500.0,0.00027396,2]
[420920249,1776727850202,-500.0,0.00027396,2]
[420920251,1776727850212,-500.0,0.00027396,2]
[420920253,1776727850221,-500.0,0.00027396,2]
[420920255,1776727850231,-500.0,0.00027396,2]
[420920257,1776727850240,-500.0,0.00027396,2]
[420920259,1776727850249,-500.0,0.00027396,2]
[420920261,1776727850258,-500.0,0.00027396,2]
[420920263,1776727850266,-500.0,0.00027396,2]
[420920265,1776727850275,-500.0,0.00027396,2]
[420920267,1776727850284,-500.0,0.00027396,2]
[420920269,1776727850294,-500.0,0.00027396,2]
[420920271,1776727850303,-500.0,0.00027396,2]
[420920273,1776727850312,-500.0,0.00027396,2]
[420920275,1776727850321,-500.0,0.00027396,2]
[420920277,1776727850331,-500.0,0.00027396,2]
[420920279,1776727850340,-500.0,0.00027396,2]
[420920281,1776727850349,-500.0,0.00027396,2]
[420920283,1776727850358,-500.0,0.00027396,2]
[420920285,1776727850366,-500.0,0.00027396,2]
[420920287,1776727850376,-500.0,0.00027396,2]
[420920289,1776727850386,-500.0,0.00027396,2]
[420920291,1776727850395,-500.0,0.00027396,2]
[420920294,1776727850405,-500.0,0.00027396,2]
[420920296,1776727850415,-500.0,0.00027396,2]
[420920298,1776727850424,-500.0,0.00027396,2]
[420920300,1776727850433,-500.0,0.00027396,2]
[420920302,1776727850442,-500.0,0.00027396,2]
[420920304,1776727850451,-500.0,0.00027396,2]
[420920305,1776727850461,-500.0,0.00027396,2]
[420920308,1776727850470,-500.0,0.00027396,2]
[420920310,1776727850479,-500.0,0.00027396,2]
[420920312,1776727850489,-500.0,0.00027396,2]
[420920314,1776727850498,-500.0,0.00027396,2]
[420920316,1776727850507,-500.0,0.00027396,2]
[420920317,1776727850516,-500.0,0.00027396,2]
[420920319,1776727850525,-500.0,0.00027396,2]
[420920321,1776727850534,-500.0,0.00027396,2]
[420920323,1776727850543,-500.0,0.00027396,2]
[420920325,1776727850552,-500.0,0.00027396,2]
[420920327,1776727850561,-500.0,0.00027396,2]
[420920329,1776727850571,-500.0,0.00027396,2]
[420920331,1776727850580,-500.0,0.00027396,2]
[420920333,1776727850589,-500.0,0.00027396,2]
[420920335,1776727850598,-500.0,0.00027396,2]
[420920337,1776727850607,-500.0,0.00027396,2]
[420920339,1776727850617,-500.0,0.00027396,2]
[420920342,1776727850626,-500.0,0.00027396,2]
[420920343,1776727850635,-500.0,0.00027396,2]
[420920345,1776727850644,-507.40832788,0.00027396,2]
[420920348,1776727850654,-500.0,0.00027396,2]
[420920350,1776727850663,-500.0,0.00027396,2]
[420920352,1776727850673,-500.0,0.00027396,2]
[420920354,1776727850683,-500.0,0.00027396,2]
[420920356,1776727850692,-500.0,0.00027396,2]
[420920358,1776727850701,-500.0,0.00027396,2]
[420920360,1776727850710,-500.0,0.00027396,2]
[420920362,1776727850719,-500.0,0.00027396,2]
[420920364,1776727850728,-496.95850528,0.00027396,2]
[420920366,1776727850738,-4635.60938801,0.00027396,2]
[420920368,1776727850747,-4635.60938801,0.00027396,2]
[420920370,1776727850756,-500.0,0.00027396,2]
[420920372,1776727850766,-500.0,0.00027396,2]
[420920374,1776727850775,-500.0,0.00027396,2]
[420920376,1776727850787,-152.0,0.00027397,5]
[420920378,1776727850796,-1111.93,0.00027397,2]
[420920380,1776727850805,-1629.73,0.00027397,2]
[420920382,1776727850815,-1185.34,0.00027397,2]
[420920384,1776727850824,-500.0,0.00027397,2]
[420920386,1776727850833,-2883.5,0.00027397,2]
[420920388,1776727850843,-897.35,0.00027397,2]
[420920390,1776727850852,-500.0,0.00027397,2]
[420920392,1776727850861,-2771.42,0.00027397,2]
[420920394,1776727850871,-500.0,0.00027397,2]
[420920396,1776727850880,-500.0,0.00027397,2]
[420920398,1776727850890,-571.16,0.00027397,2]
[420920400,1776727850899,-500.0,0.00027397,2]
[420920402,1776727850908,-500.0,0.00027397,2]
[420920404,1776727850918,-2947.84,0.00027397,2]
[420920406,1776727850928,-500.0,0.00027397,2]
[420920408,1776727850938,-500.0,0.00027397,2]
[420920410,1776727850947,-601.35,0.00027397,2]
[420920412,1776727850957,-1520.31,0.00027397,2]
[420920414,1776727850966,-500.0,0.00027397,2]
[420920416,1776727850975,-2092.09,0.00027397,2]
[420920418,1776727850985,-1357.15,0.00027397,2]
[420920420,1776727850994,-2038.02,0.00027397,2]
[420920422,1776727851003,-500.0,0.00027397,2]
[420920424,1776727851012,-1201.72,0.00027397,2]
[420920426,1776727851022,-500.0,0.00027397,2]
[420920428,1776727851031,-500.0,0.00027397,2]
[420920430,1776727851040,-1026.22,0.00027397,2]
[420920432,1776727851050,-500.0,0.00027397,2]
[420920434,1776727851059,-2647.57,0.00027397,2]
[420920436,1776727851068,-500.0,0.00027397,2]
[420920438,1776727851077,-1027.29,0.00027397,2]
[420920440,1776727851086,-500.0,0.00027397,2]
[420920442,1776727851096,-500.0,0.00027397,2]
[420920444,1776727851105,-3132.53,0.00027397,2]
[420920446,1776727851114,-542.6,0.00027397,2]
[420920448,1776727851123,-1306.42,0.00027397,2]
[420920450,1776727851132,-1537.21,0.00027397,2]
[420920452,1776727851141,-802.78,0.00027397,2]
[420920453,1776727851150,-500.0,0.00027397,2]
[420920455,1776727851159,-500.0,0.00027397,2]
[420920457,1776727851168,-1185.96810307,0.00027397,2]
[420920462,1776727851198,-625.91189693,0.00027397,2]
[420920464,1776727851207,-1143.89,0.00027397,2]
[420920466,1776727851216,-1902.51,0.00027397,2]
[420920468,1776727851226,-500.0,0.00027397,2]
[420920470,1776727851235,-500.0,0.00027397,2]
[420920471,1776727851244,-1458.9800784,0.00027397,2]
[420920474,1776727851263,-580.13076346,0.00027397,2]
[420920477,1776727851274,-387.372,0.00027397,2]
[420920763,1776728138553,-217.68449861,9.698e-05,2]
[420920764,1776728138581,-264.18344069,9.698e-05,2]
[420920765,1776728138616,-500.0,9.698e-05,2]
[420920766,1776728138645,-500.0,9.698e-05,2]
[420920767,1776728138679,-500.0,9.698e-05,2]
[420920768,1776728138939,-500.0,9.698e-05,2]
[420920769,1776728138970,-199.3775407,9.698e-05,2]
[420920772,1776729032315,-2498.171,9.505e-05,2]
[420920773,1776729032326,-184.674,9.505e-05,2]
[420920774,1776729032336,-953.86479748,9.599e-05,2]
[420920775,1776729032348,-626.10704283,9.599e-05,2]
[420920776,1776729032377,-920.02815969,9.599e-05,2]
[420920777,1776729032386,-1855.03229426,9.599e-05,2]
[420920778,1776729032399,-300.0,9.599e-05,2]
[420920779,1776729032427,-3981.23207322,9.599e-05,2]
[420920780,1776729032439,-306.01657405,9.599e-05,2]
[420920781,1776729032477,-12880.97863727,9.599e-05,2]
[420920782,1776729032530,-500.91157275,9.599e-05,2]
[420920783,1776729032543,-462.11065713,9.599e-05,2]
[420920784,1776729032585,-322.59321388,9.599e-05,2]
[420920841,1776729039454,-943.95867498,9.599e-05,2]
[420920846,1776729039489,-308.5174995,9.599e-05,2]
[420920850,1776729039518,-3822.0863609,9.599e-05,2]
[420920853,1776729039536,-86663.65364148,9.599e-05,2]
[420920855,1776729039548,-2603.83148825,9.599e-05,2]
[420920872,1776729039722,-1829.48085355,9.599e-05,2]
[420920873,1776729039886,-23311.07835878,9.599e-05,2]
[420920874,1776729039896,-188.0,9.695e-05,2]
[420920875,1776729039905,-1200.0,9.695e-05,2]
[420920876,1776729039915,-300.0,9.696e-05,2]
[420920877,1776729039924,-1000.0,9.699e-05,2]
[420920878,1776729039933,-316.77936515,9.7e-05,2]
[420920879,1776729039942,-500.0,9.7e-05,2]
[420920880,1776729039951,-500.0,9.7e-05,2]
[420920881,1776729039961,-150.0,9.77e-05,2]
[420920882,1776729039970,-200.0,0.0001,3]
[420920883,1776729039979,-152.64,0.0001007,2]
[420920884,1776729039990,-300.0,0.00010456,2]
[420920885,1776729039999,-300.0,0.00010456,2]
[420920886,1776729040010,-250.0,0.00013,2]
[420920887,1776729040019,-151.0,0.00013258,2]
[420920888,1776729040029,-500.0,0.00013698,2]
[420920889,1776729040038,-500.0,0.00013698,2]
[420920890,1776729040048,-500.0,0.00013698,2]
[420920891,1776729040058,-500.0,0.00013698,2]
[420920892,1776729040067,-500.0,0.00013698,2]
[420920893,1776729040077,-500.0,0.00013698,2]
[420920894,1776729040086,-500.0,0.00013698,2]
[420920895,1776729040096,-500.0,0.00013698,2]
[420920896,1776729040105,-500.0,0.00013698,2]
[420920897,1776729040114,-500.0,0.00013698,2]
[420920898,1776729040124,-500.0,0.00013698,2]
[420920899,1776729040133,-500.0,0.00013698,2]
[420920900,1776729040143,-500.0,0.00013698,2]
[420920901,1776729040153,-569.08,0.00013698,2]
[420920902,1776729040162,-500.0,0.00013698,2]
[420920903,1776729040172,-500.0,0.00013698,2]
[420920904,1776729040182,-500.0,0.00013698,2]
[420920905,1776729040191,-500.0,0.00013698,2]
[420920906,1776729040201,-500.0,0.00013698,2]
[420920907,1776729040210,-500.0,0.00013698,2]
[420920908,1776729040219,-502.77724734,0.00013698,2]
[420920909,1776729040228,-500.0,0.00013698,2]
[420920910,1776729040238,-500.0,0.00013698,2]
[420920911,1776729040247,-500.0,0.00013698,2]
[420920912,1776729040257,-500.0,0.00013698,2]
[420920913,1776729040266,-500.0,0.00013698,2]
[420920914,1776729040275,-500.0,0.00013698,2]
[420920915,1776729040284,-500.0,0.00013698,2]
[420920916,1776729040293,-500.0,0.00013698,2]
[420920917,1776729040303,-500.0,0.00013698,2]
[420920918,1776729040312,-500.0,0.00013698,2]
[420920919,1776729040322,-500.0,0.00013698,2]
[420920920,1776729040331,-500.0,0.00013698,2]
[420920921,1776729040342,-500.0,0.00013698,2]
[420920922,1776729040351,-500.0,0.00013698,2]
[420920923,1776729040361,-500.0,0.00013698,2]
[420920924,1776729040370,-500.0,0.00013698,2]
[420920925,1776729040380,-187.38928383,0.00013698,2]
[420920926,1776729040390,-500.0,0.00013698,2]
[420920927,1776729040399,-500.0,0.00013698,2]
[420920928,1776729040409,-500.0,0.00013698,2]
[420920929,1776729040418,-500.0,0.00013698,2]
[420920930,1776729040428,-500.0,0.00013698,2]
[420920932,1776729040437,-500.0,0.00013698,2]
[420920933,1776729040446,-500.0,0.00013698,2]
[420920934,1776729040455,-500.0,0.00013698,2]
[420920935,1776729040464,-500.0,0.00013698,2]
[420920937,1776729040473,-500.0,0.00013698,2]
[420920938,1776729040483,-500.0,0.00013698,2]
[420920939,1776729040492,-500.0,0.00013698,2]
[420920940,1776729040502,-500.0,0.00013698,2]
[420920941,1776729040511,-500.0,0.00013698,2]
[420920942,1776729040520,-500.0,0.00013698,2]
[420920943,1776729040530,-500.0,0.00013698,2]
[420920944,1776729040539,-500.0,0.00013698,2]
[420920945,1776729040548,-500.0,0.00013698,2]
[420920946,1776729040558,-500.0,0.00013698,2]
[420920947,1776729040567,-500.0,0.00013698,2]
[420920948,1776729040577,-500.0,0.00013698,2]
[420920949,1776729040586,-500.0,0.00013698,2]
[420920950,1776729040595,-500.0,0.00013698,2]
[420920951,1776729040605,-500.0,0.00013698,2]
[420920952,1776729040614,-500.0,0.00013698,2]
[420920953,1776729040623,-500.0,0.00013698,2]
[420920954,1776729040632,-500.0,0.00013698,2]
[420920955,1776729040642,-500.0,0.00013698,2]
[420920956,1776729040652,-500.0,0.00013698,2]
[420920957,1776729040661,-500.0,0.00013698,2]
[420920958,1776729040670,-500.0,0.00013698,2]
[420920959,1776729040680,-500.0,0.00013698,2]
[420920960,1776729040689,-500.0,0.00013698,2]
[420920961,1776729040699,-500.0,0.00013698,2]
[420920962,1776729040708,-500.0,0.00013698,2]
[420920963,1776729040718,-505.0,0.0001372,2]
[420920964,1776729040729,-723.7197879,0.0001399,2]
[420920965,1776729040739,-300.0,0.00015,2]
[420920966,1776729040748,-159.0,0.00016,2]
[420920967,1776729040758,-505.0,0.00016371,4]
[420920968,1776729040768,-152.63287302,0.00016438,2]
[420920969,1776729040777,-152.63287302,0.00016438,2]
[420920970,1776729040786,-500.0,0.00016535,2]
[420920971,1776729040796,-500.0,0.00016536,2]
[420920972,1776729040805,-516.40778139,0.00016536,2]
[420920973,1776729040815,-350.0,0.00017,2]
[420920974,1776729040824,-505.0,0.00019022,6]
[420920975,1776729040833,-500.0,0.00019726,2]
[420920976,1776729040843,-500.0,0.00019726,2]
[420920977,1776729040852,-500.0,0.00019726,2]
[420920978,1776729040862,-500.0,0.00019726,2]
[420920979,1776729040871,-500.0,0.00019726,2]
[420920980,1776729040880,-500.0,0.00019726,2]
[420920981,1776729040890,-450.0,0.00019726,2]
[420920982,1776729040900,-160.0,0.00019822,2]
[420920983,1776729040910,-154.0,0.0002,2]
[420920984,1776729040920,-310.0,0.0002,2]
[420920985,1776729040932,-198.0,0.0002,2]
[420920986,1776729040942,-301.0,0.0002,2]
[420920987,1776729040952,-166.66,0.00020491,2]
[420920988,1776729040963,-166.66,0.00020923,2]
[420920989,1776729040972,-154.0,0.00021,2]
[420920990,1776729040981,-310.0,0.00021,2]
[420920991,1776729040991,-198.0,0.00021,2]
[420920992,1776729041000,-232.90637525,0.00021,2]
[420920993,1776729041014,-68.09362475,0.00021,2]
[420920994,1776729041024,-271.67393203,0.00021054,2]
[420920995,1776729041033,-200.0,0.000212,2]
[420920996,1776729041042,-166.66,0.00021354,2]
[420920997,1776729041052,-2000.0,0.000214,2]
[420920998,1776729041062,-5392.0,0.000215,5]
[420920999,1776729041071,-1852.42,0.0002157,2]
[420921000,1776729041081,-162.93,0.0002157,2]
[420921002,1776729041091,-2000.0,0.0002157,2]
[420921004,1776729041100,-505.0,0.00021674,8]
[420921005,1776729041109,-166.66,0.00021786,2]
[420921006,1776729041119,-600.0,0.00021918,2]
[420921007,1776729041129,-600.0,0.00021918,2]
[420921008,1776729041138,-600.0,0.00021918,2]
[420921009,1776729041147,-600.0,0.00021918,2]
[420921010,1776729041158,-600.0,0.00021918,2]
[420921011,1776729041167,-154.0,0.00022,2]
[420921012,1776729041176,-310.0,0.00022,2]
[420921013,1776729041185,-198.0,0.00022,2]
[420921014,1776729041195,-301.0,0.00022,2]
[420921015,1776729041205,-166.66,0.00022217,30]
[420921016,1776729041215,-166.66,0.00022217,2]
[420921017,1776729041224,-166.66,0.00022648,30]
[420921018,1776729041234,-150.17,0.0002294,2]
[420921019,1776729041244,-166.66,0.0002295,2]
[420921021,1776729041254,-154.0,0.00023,2]
[420921023,1776729041263,-310.0,0.00023,2]
[420921024,1776729041273,-198.0,0.00023,2]
[420921025,1776729041282,-301.0,0.00023,2]
[420921026,1776729041292,-600.0,0.00023288,2]
[420921027,1776729041301,-166.66,0.00023684,2]
[420921028,1776729041311,-168.0,0.00024,2]
[420921029,1776729041320,-310.0,0.00024,2]
[420921030,1776729041329,-198.0,0.00024,2]
[420921031,1776729041339,-301.0,0.00024,2]
[420921032,1776729041348,-470.0,0.00024155,10]
[420921033,1776729041358,-716.0,0.00024155,10]
[420921034,1776729041368,-834.0,0.00024155,10]
[420921035,1776729041377,-505.0,0.00024325,11]
[420921036,1776729041387,-166.66,0.00024417,2]
[420921037,1776729041396,-150.0,0.00024633,2]
[420921038,1776729041405,-150.0,0.00024633,2]
[420921039,1776729041415,-233.968046,0.00024658,2]
[420921040,1776729041424,-150.0,0.00024658,2]
[420921041,1776729041434,-326.0,0.00025,2]
[420921042,1776729041443,-200.0,0.00025,2]
[420921043,1776729041452,-315.0,0.00025,2]
[420921044,1776729041462,-2000.0,0.000251,2]
[420921045,1776729041471,-166.66,0.0002515,2]
[420921046,1776729041480,-638.27,0.00025853,2]
[420921047,1776729041490,-151.0,0.00025859,2]
[420921048,1776729041500,-284.77,0.0002586,2]
[420921049,1776729041509,-166.66,0.00025884,2]
[420921050,1776729041519,-150.0,0.0002589,2]
[420921051,1776729041528,-162.93,0.00026008,2]
[420921052,1776729041537,-1983.3416737,0.00026378,2]
[420921053,1776729041546,-350.0,0.00026635,2]
[420921054,1776729041556,-350.0,0.00026662,2]
[420921055,1776729041565,-151.0,0.00026678,2]
[420921056,1776729041574,-400.0,0.000267,9]
[420921057,1776729041583,-300.0,0.000268,2]
[420921058,1776729041592,-300.0,0.000268,2]
[420921059,1776729041602,-600.0,0.000268,9]
[420921060,1776729041611,-670.65432393,0.00026832,2]
[420921061,1776729041620,-300.0,0.000269,2]
[420921062,1776729041629,-300.0,0.000269,2]
[420921063,1776729041639,-300.0,0.000269,2]
[420921064,1776729041649,-300.0,0.000269,2]
[420921065,1776729041658,-800.0,0.000269,9]
[420921066,1776729041667,-368.75078828,0.00026904,2]
[420921067,1776729041677,-505.0,0.00026976,13]
[420921068,1776729041687,-250.0,0.00027003,8]
[420921069,1776729041696,-250.0,0.00027003,8]
[420921070,1776729041705,-245.189811,0.00027118,14]
[420921071,1776729041715,-185.614172,0.00027118,14]
[420921072,1776729041724,-206.532212,0.00027118,120]
[420921073,1776729041733,-206.532212,0.00027118,14]
[420921074,1776729041742,-245.189812,0.00027118,14]
[420921075,1776729041752,-150.0,0.00027185,2]
[420921076,1776729041761,-264.03150774,0.00027297,2]
[420921077,1776729041771,-206.532212,0.00027386,120]
[420921078,1776729041780,-206.532212,0.00027386,14]
[420921079,1776729041790,-186.81878626,0.00027387,2]
[420921080,1776729041799,-300.0,0.0002739,2]
[420921081,1776729041808,-300.0,0.0002739,2]
[420921082,1776729041818,-300.0,0.0002739,2]
[420921083,1776729041827,-300.0,0.0002739,2]
[420921084,1776729041837,-300.0,0.0002739,2]
[420921085,1776729041846,-300.0,0.0002739,2]
[420921086,1776729041855,-300.0,0.0002739,2]
[420921087,1776729041864,-151.0,0.00027394,7]
[420921088,1776729041874,-4442.45899685,0.00027396,2]
[420921089,1776729041883,-3509.48000713,0.00027396,2]
[420921090,1776729041896,-932.97898971,0.00027396,2]
[420921091,1776729041905,-500.0,0.00027396,2]
[420921092,1776729041914,-393.15967189,0.00027396,2]
[420921093,1776729041926,-106.84032811,0.00027396,2]
[420921094,1776729041935,-500.0,0.00027396,2]
[420921095,1776729041944,-500.0,0.00027396,2]
[420921096,1776729041954,-500.0,0.00027396,2]
[420921097,1776729041963,-500.0,0.00027396,2]
[420921098,1776729041972,-500.0,0.00027396,2]
[420921099,1776729041982,-500.0,0.00027396,2]
[420921100,1776729041991,-500.0,0.00027396,2]
[420921101,1776729042000,-401.0,0.00027397,5]
[420921102,1776729042010,-360.0,0.00027397,5]
[420921103,1776729042019,-500.0,0.00027397,2]
[420921104,1776729042028,-500.0,0.00027397,2]
[420921105,1776729042038,-500.0,0.00027397,2]
[420921106,1776729042048,-500.0,0.00027397,2]
[420921107,1776729042058,-500.0,0.00027397,2]
[420921108,1776729042067,-500.0,0.00027397,2]
[420921109,1776729042076,-500.0,0.00027397,2]
[420921110,1776729042086,-500.0,0.00027397,2]
[420921111,1776729042095,-500.0,0.00027397,2]
[420921112,1776729042105,-500.0,0.00027397,2]
[420921113,1776729042114,-500.0,0.00027397,2]
[420921114,1776729042123,-500.0,0.00027397,2]
[420921115,1776729042132,-300.0,0.00027397,2]
[420921116,1776729042142,-500.0,0.00027397,2]
[420921117,1776729042151,-500.0,0.00027397,2]
[420921118,1776729042163,-500.0,0.00027397,2]
[420921119,1776729042173,-500.0,0.00027397,2]
[420921120,1776729042184,-500.0,0.00027397,2]